[Event "*** SCC Grand Prix: Titled Tuesday Blitz"]
[Site "Chess.com"]
[Date "2020.07.21"]
[Round "5"]
[White "FeketeBarika"]
[Black "MathiasWomacka"]
[Result "0-1"]
[WhiteElo "2178"]
[BlackElo "2452"]
[TimeControl "180+1"]
[EndTime "10:55:06 PDT"]
[Termination "MathiasWomacka won by resignation"]

1. Nf3 {[%clk 0:03:00.9]} 1... c5 {[%clk 0:02:58.4]} 2. g3 {[%clk 0:03:01.8]}
2... Nc6 {[%clk 0:02:57.1]} 3. Bg2 {[%clk 0:02:42]} 3... g6 {[%clk 0:02:56.5]}
4. c4 {[%clk 0:02:42.2]} 4... Bg7 {[%clk 0:02:56.3]} 5. O-O {[%clk 0:02:42]}
5... e5 {[%clk 0:02:54.8]} 6. Nc3 {[%clk 0:02:41.6]} 6... Nge7 {[%clk
0:02:54.7]} 7. d3 {[%clk 0:02:38.2]} 7... d6 {[%clk 0:02:54.1]} 8. a3 {[%clk
0:02:37.9]} 8... O-O {[%clk 0:02:52.5]} 9. Rb1 {[%clk 0:02:38.2]} 9... a5 {[%clk
0:02:51.7]} 10. Nd5 {[%clk 0:02:38.1]} 10... Nxd5 {[%clk 0:02:49.5]} 11. cxd5
{[%clk 0:02:37.7]} 11... Ne7 {[%clk 0:02:49.5]} 12. Ne1 {[%clk 0:02:36.9]} 12...
b5 {[%clk 0:02:26.9]} 13. b4 {[%clk 0:02:36.6]} 13... cxb4 {[%clk 0:02:26.5]}
14. axb4 {[%clk 0:02:37.5]} 14... a4 {[%clk 0:02:26.9]} 15. Nc2 {[%clk
0:02:36.9]} 15... Nf5 {[%clk 0:02:18]} 16. Na3 {[%clk 0:02:34.6]} 16... Bd7
{[%clk 0:02:12.6]} 17. Bb2 {[%clk 0:02:32.8]} 17... Qb6 {[%clk 0:02:08]} 18. e3
{[%clk 0:02:29.2]} 18... Rfc8 {[%clk 0:02:05.3]} 19. Qd2 {[%clk 0:02:29.4]}
19... Ne7 {[%clk 0:01:56.9]} 20. Rfc1 {[%clk 0:02:28.5]} 20... h5 {[%clk
0:01:53.8]} 21. h4 {[%clk 0:02:26.8]} 21... Bf5 {[%clk 0:01:40.6]} 22. Rxc8+
{[%clk 0:02:15.3]} 22... Rxc8 {[%clk 0:01:39.8]} 23. Rc1 {[%clk 0:02:15.7]}
23... Rxc1+ {[%clk 0:01:33.4]} 24. Bxc1 {[%clk 0:02:16.6]} 24... Bc8 {[%clk
0:01:27.3]} 25. Bb2 {[%clk 0:02:16.6]} 25... Bb7 {[%clk 0:01:27.2]} 26. e4
{[%clk 0:02:15.3]} 26... Kh7 {[%clk 0:01:26]} 27. Qc2 {[%clk 0:02:10.6]} 27...
Bc8 {[%clk 0:01:16.2]} 28. Qc3 {[%clk 0:02:04.5]} 28... Bd7 {[%clk 0:01:15.3]}
29. Bc1 {[%clk 0:02:03.9]} 29... Bh6 {[%clk 0:01:10.1]} 30. Bxh6 {[%clk
0:02:02.4]} 30... Kxh6 {[%clk 0:01:11]} 31. Kf1 {[%clk 0:02:01.8]} 31... Kg7
{[%clk 0:01:05.5]} 32. Bf3 {[%clk 0:02:01.4]} 32... Ng8 {[%clk 0:00:53.9]} 33.
Ke2 {[%clk 0:02:00.8]} 33... Nf6 {[%clk 0:00:53.9]} 34. Ke1 {[%clk 0:01:48.4]}
34... Kf8 {[%clk 0:00:40]} 35. Nc2 {[%clk 0:01:37.5]} 35... Ke7 {[%clk
0:00:39.7]} 36. d4 {[%clk 0:01:37.1]} 36... exd4 {[%clk 0:00:35.1]} 37. Qxd4
{[%clk 0:01:35.5]} 37... Qxd4 {[%clk 0:00:26.9]} 38. Nxd4 {[%clk 0:01:36.4]}
38... Ng4 {[%clk 0:00:22.5]} 39. Bxg4 {[%clk 0:01:34.3]} 39... hxg4 {[%clk
0:00:22.1]} 40. Nc2 {[%clk 0:01:34.2]} 40... Kf6 {[%clk 0:00:21.4]} 41. Kd2
{[%clk 0:01:33.9]} 41... Ke5 {[%clk 0:00:19.9]} 42. Ke3 {[%clk 0:01:33.5]} 42...
f5 {[%clk 0:00:19.5]} 43. exf5 {[%clk 0:01:33.3]} 43... Bxf5 {[%clk 0:00:19.3]}
44. Na3 {[%clk 0:01:30.7]} 44... Bd7 {[%clk 0:00:18.7]} 45. f3 {[%clk
0:01:20.2]} 45... gxf3 {[%clk 0:00:16.1]} 46. Kxf3 {[%clk 0:01:21.1]} 46... Kd4
{[%clk 0:00:13.9]} 47. g4 {[%clk 0:01:19.9]} 47... Kc3 {[%clk 0:00:13.1]} 48. h5
{[%clk 0:01:18.3]} 48... gxh5 {[%clk 0:00:13.1]} 49. gxh5 {[%clk 0:01:19.2]}
49... Kxb4 {[%clk 0:00:12.6]} 50. Kf4 {[%clk 0:01:12.3]} 50... Be8 {[%clk
0:00:12.1]} 51. h6 {[%clk 0:01:12.1]} 51... Bg6 {[%clk 0:00:12.7]} 52. Kg5
{[%clk 0:01:11.6]} 52... Bh7 {[%clk 0:00:12.7]} 0-1

[Event "*** SCC Grand Prix: Titled Tuesday Blitz"]
[Site "Chess.com"]
[Date "2020.07.21"]
[Round "5"]
[White "jonychess03"]
[Black "Ariadna_Atreides"]
[Result "0-1"]
[WhiteElo "2303"]
[BlackElo "2109"]
[TimeControl "180+1"]
[EndTime "10:55:08 PDT"]
[Termination "Ariadna_Atreides won on time"]

1. c4 {[%clk 0:02:55.1]} 1... Nf6 {[%clk 0:02:58.2]} 2. Nc3 {[%clk 0:01:36.3]}
2... c5 {[%clk 0:02:47.1]} 3. g3 {[%clk 0:01:35.9]} 3... e5 {[%clk 0:02:37]} 4.
Bg2 {[%clk 0:01:35.4]} 4... Be7 {[%clk 0:02:34.8]} 5. e3 {[%clk 0:01:34.2]} 5...
Nc6 {[%clk 0:02:33.2]} 6. Nge2 {[%clk 0:01:34.6]} 6... d6 {[%clk 0:02:29]} 7.
O-O {[%clk 0:01:34.5]} 7... O-O {[%clk 0:02:27.9]} 8. d4 {[%clk 0:01:33.3]} 8...
exd4 {[%clk 0:02:23.3]} 9. exd4 {[%clk 0:01:34.2]} 9... Bg4 {[%clk 0:02:23.2]}
10. Be3 {[%clk 0:01:06.6]} 10... cxd4 {[%clk 0:02:14.2]} 11. Bxd4 {[%clk
0:01:07.5]} 11... Nxd4 {[%clk 0:02:13.9]} 12. Qxd4 {[%clk 0:01:08.4]} 12... a6
{[%clk 0:02:10.4]} 13. h3 {[%clk 0:00:50.6]} 13... Be6 {[%clk 0:02:04.4]} 14. b3
{[%clk 0:00:45]} 14... Qc7 {[%clk 0:02:01.2]} 15. Nf4 {[%clk 0:00:42.3]} 15...
Rac8 {[%clk 0:01:58.2]} 16. Nfd5 {[%clk 0:00:29.7]} 16... Nxd5 {[%clk
0:01:53.7]} 17. Nxd5 {[%clk 0:00:30.6]} 17... Bxd5 {[%clk 0:01:53.7]} 18. Qxd5
{[%clk 0:00:29.2]} 18... b6 {[%clk 0:01:50.4]} 19. Rac1 {[%clk 0:00:29.5]} 19...
Rfd8 {[%clk 0:01:47.8]} 20. Qb7 {[%clk 0:00:27.6]} 20... a5 {[%clk 0:01:43.9]}
21. Rfd1 {[%clk 0:00:23.6]} 21... g6 {[%clk 0:01:32.5]} 22. Qxc7 {[%clk
0:00:22.8]} 22... Rxc7 {[%clk 0:01:32.4]} 23. a4 {[%clk 0:00:21.8]} 23... Bf6
{[%clk 0:01:27.7]} 24. Rc2 {[%clk 0:00:20.3]} 24... g5 {[%clk 0:01:11.7]} 25.
Rcd2 {[%clk 0:00:20.1]} 25... Be5 {[%clk 0:01:11.7]} 26. Rd5 {[%clk 0:00:16.3]}
26... Rcd7 {[%clk 0:01:04.5]} 27. Bf3 {[%clk 0:00:15]} 27... f5 {[%clk 0:00:58]}
28. g4 {[%clk 0:00:15]} 28... f4 {[%clk 0:00:56.2]} 29. Be4 {[%clk 0:00:15.5]}
29... h6 {[%clk 0:00:47]} 30. Bf5 {[%clk 0:00:15.3]} 30... Re7 {[%clk
0:00:47.2]} 31. Kg2 {[%clk 0:00:11.8]} 31... Kg7 {[%clk 0:00:40.7]} 32. Rb5
{[%clk 0:00:11.6]} 32... Rb8 {[%clk 0:00:39.6]} 33. Re1 {[%clk 0:00:06.2]} 33...
Kf6 {[%clk 0:00:38.5]} 34. f3 {[%clk 0:00:06.4]} 34... Rc7 {[%clk 0:00:37.2]}
35. Rd1 {[%clk 0:00:05.8]} 35... Rc5 {[%clk 0:00:36.3]} 36. Bd7 {[%clk
0:00:03.7]} 36... Rb7 {[%clk 0:00:32.6]} 0-1

[Event "*** SCC Grand Prix: Titled Tuesday Blitz"]
[Site "Chess.com"]
[Date "2020.07.21"]
[Round "5"]
[White "Vesper2018"]
[Black "LuckSlayeer"]
[Result "0-1"]
[WhiteElo "2591"]
[BlackElo "2425"]
[TimeControl "180+1"]
[EndTime "10:55:09 PDT"]
[Termination "LuckSlayeer won by resignation"]

1. e4 {[%clk 0:02:58]} 1... c5 {[%clk 0:03:00.3]} 2. Nc3 {[%clk 0:02:57.2]} 2...
Nc6 {[%clk 0:03:00.8]} 3. Bb5 {[%clk 0:02:56.1]} 3... Nd4 {[%clk 0:03:00.9]} 4.
Bc4 {[%clk 0:02:55.2]} 4... e6 {[%clk 0:03:01.3]} 5. Nge2 {[%clk 0:02:54.5]}
5... Nf6 {[%clk 0:03:01.8]} 6. O-O {[%clk 0:02:53.4]} 6... a6 {[%clk 0:02:57.7]}
7. a4 {[%clk 0:02:52.7]} 7... d6 {[%clk 0:02:50.9]} 8. d3 {[%clk 0:02:48.8]}
8... Nxe2+ {[%clk 0:02:50]} 9. Qxe2 {[%clk 0:02:46.9]} 9... Be7 {[%clk
0:02:50.6]} 10. f4 {[%clk 0:02:42.3]} 10... O-O {[%clk 0:02:50.6]} 11. Bb3
{[%clk 0:02:37.6]} 11... d5 {[%clk 0:02:35.7]} 12. exd5 {[%clk 0:02:08.5]} 12...
exd5 {[%clk 0:02:27.6]} 13. Nxd5 {[%clk 0:02:06.1]} 13... Nxd5 {[%clk
0:02:12.2]} 14. Bxd5 {[%clk 0:02:05.7]} 14... Qxd5 {[%clk 0:02:02.3]} 15. Qxe7
{[%clk 0:02:05.1]} 15... Be6 {[%clk 0:01:54.4]} 16. Qg5 {[%clk 0:01:57]} 16...
Qd4+ {[%clk 0:01:47.5]} 17. Kh1 {[%clk 0:01:56.5]} 17... f5 {[%clk 0:01:37.6]}
18. Qg3 {[%clk 0:01:46.6]} 18... Rae8 {[%clk 0:01:23.7]} 19. Be3 {[%clk
0:01:34.9]} 19... Qd5 {[%clk 0:01:06.7]} 20. a5 {[%clk 0:01:29.7]} 20... Bd7
{[%clk 0:01:01.7]} 21. Qf2 {[%clk 0:01:22.2]} 21... Bc6 {[%clk 0:00:44.1]} 22.
Bxc5 {[%clk 0:01:16.7]} 22... Rf6 {[%clk 0:00:44.6]} 23. c4 {[%clk 0:00:32.1]}
23... Qxd3 {[%clk 0:00:38.1]} 24. Qd4 {[%clk 0:00:27.2]} 24... Qh3 {[%clk
0:00:22.1]} 25. Qg1 {[%clk 0:00:18.8]} 25... Re2 {[%clk 0:00:18.7]} 26. Rf2
{[%clk 0:00:18.6]} 26... Rxf2 {[%clk 0:00:18.5]} 27. Bxf2 {[%clk 0:00:18.8]}
27... Rg6 {[%clk 0:00:15.5]} 28. Bg3 {[%clk 0:00:14.2]} 28... Rxg3 {[%clk
0:00:13.7]} 29. Qf2 {[%clk 0:00:04.4]} 29... Rxg2 {[%clk 0:00:11.7]} 0-1

[Event "*** SCC Grand Prix: Titled Tuesday Blitz"]
[Site "Chess.com"]
[Date "2020.07.21"]
[Round "5"]
[White "Irochka83"]
[Black "VladimirBugayev"]
[Result "1-0"]
[WhiteElo "2350"]
[BlackElo "2158"]
[TimeControl "180+1"]
[EndTime "10:55:09 PDT"]
[Termination "Irochka83 won on time"]

1. d4 {[%clk 0:03:00.9]} 1... d5 {[%clk 0:02:59]} 2. c4 {[%clk 0:03:01.5]} 2...
c6 {[%clk 0:02:58.7]} 3. cxd5 {[%clk 0:03:00.9]} 3... cxd5 {[%clk 0:02:57.6]} 4.
Bf4 {[%clk 0:03:01.5]} 4... Nc6 {[%clk 0:02:55.7]} 5. e3 {[%clk 0:03:02.1]} 5...
a6 {[%clk 0:02:55.5]} 6. Bd3 {[%clk 0:02:57.1]} 6... Nf6 {[%clk 0:02:54]} 7. Nc3
{[%clk 0:02:42.2]} 7... Bg4 {[%clk 0:02:40.6]} 8. Nge2 {[%clk 0:02:41.2]} 8...
e6 {[%clk 0:02:39.2]} 9. O-O {[%clk 0:02:39.1]} 9... Bd6 {[%clk 0:02:38.1]} 10.
f3 {[%clk 0:02:38.3]} 10... Bh5 {[%clk 0:02:36.1]} 11. Rc1 {[%clk 0:02:36.5]}
11... Bg6 {[%clk 0:02:30.8]} 12. Na4 {[%clk 0:02:29.6]} 12... Bxd3 {[%clk
0:02:00.3]} 13. Qxd3 {[%clk 0:02:28.1]} 13... Bxf4 {[%clk 0:01:45.4]} 14. Nxf4
{[%clk 0:02:27.7]} 14... O-O {[%clk 0:01:44.6]} 15. Nc5 {[%clk 0:02:24.5]} 15...
Qe7 {[%clk 0:01:36.8]} 16. Qd2 {[%clk 0:01:42.4]} 16... Rfd8 {[%clk 0:01:30]}
17. Nfd3 {[%clk 0:01:41.7]} 17... b6 {[%clk 0:01:10.9]} 18. Na4 {[%clk
0:01:29.3]} 18... Qb7 {[%clk 0:01:05.7]} 19. Rc3 {[%clk 0:01:17.6]} 19... Rac8
{[%clk 0:00:53.8]} 20. Rfc1 {[%clk 0:01:16.8]} 20... Ne7 {[%clk 0:00:27.1]} 21.
Ne5 {[%clk 0:00:47.8]} 21... h6 {[%clk 0:00:20]} 22. b3 {[%clk 0:00:36.1]} 22...
Rxc3 {[%clk 0:00:18]} 23. Rxc3 {[%clk 0:00:35.9]} 23... Rc8 {[%clk 0:00:18.3]}
24. Rxc8+ {[%clk 0:00:35.4]} 24... Nxc8 {[%clk 0:00:16.8]} 25. Qb4 {[%clk
0:00:26.5]} 25... Ne8 {[%clk 0:00:03.2]} 26. Qc3 {[%clk 0:00:19.8]} 26... Ned6
{[%clk 0:00:03.4]} 27. Qc6 {[%clk 0:00:15.8]} 27... f6 {[%clk 0:00:01.7]} 28.
Qxb7 {[%clk 0:00:08]} 28... Nxb7 {[%clk 0:00:01.6]} 29. Nd7 {[%clk 0:00:07.6]}
1-0

[Event "*** SCC Grand Prix: Titled Tuesday Blitz"]
[Site "Chess.com"]
[Date "2020.07.21"]
[Round "5"]
[White "Munkhzul_Turmunkh"]
[Black "51616516516"]
[Result "1-0"]
[WhiteElo "2595"]
[BlackElo "2411"]
[TimeControl "180+1"]
[EndTime "10:55:10 PDT"]
[Termination "Munkhzul_Turmunkh won on time"]

1. e4 {[%clk 0:03:00.9]} 1... c5 {[%clk 0:02:59.3]} 2. Nf3 {[%clk 0:03:00.5]}
2... e6 {[%clk 0:02:58.2]} 3. d4 {[%clk 0:03:00]} 3... cxd4 {[%clk 0:02:59.1]}
4. Nxd4 {[%clk 0:03:00.7]} 4... Nc6 {[%clk 0:02:58.6]} 5. Nc3 {[%clk 0:03:00.2]}
5... Qc7 {[%clk 0:02:58.6]} 6. Be3 {[%clk 0:02:59.5]} 6... a6 {[%clk 0:02:58.8]}
7. Qd2 {[%clk 0:02:40.8]} 7... Nf6 {[%clk 0:02:56]} 8. O-O-O {[%clk 0:02:39.3]}
8... Bb4 {[%clk 0:02:46]} 9. f3 {[%clk 0:02:37.4]} 9... Ne5 {[%clk 0:02:35.1]}
10. Nb3 {[%clk 0:02:34.9]} 10... O-O {[%clk 0:02:08.5]} 11. a3 {[%clk
0:02:22.8]} 11... Be7 {[%clk 0:02:06.7]} 12. f4 {[%clk 0:02:15.3]} 12... Neg4
{[%clk 0:01:45]} 13. Bg1 {[%clk 0:02:11.2]} 13... d5 {[%clk 0:01:32]} 14. e5
{[%clk 0:02:05.6]} 14... Nd7 {[%clk 0:01:25.3]} 15. h3 {[%clk 0:02:02.3]} 15...
Nh6 {[%clk 0:01:24.7]} 16. g4 {[%clk 0:02:00.7]} 16... b5 {[%clk 0:01:19.4]} 17.
Kb1 {[%clk 0:01:52.7]} 17... Bb7 {[%clk 0:01:18]} 18. Bg2 {[%clk 0:01:41.4]}
18... Rac8 {[%clk 0:01:16.5]} 19. Bd4 {[%clk 0:01:34.8]} 19... b4 {[%clk
0:01:13.7]} 20. axb4 {[%clk 0:01:32.1]} 20... Bxb4 {[%clk 0:01:14.6]} 21. Rhf1
{[%clk 0:01:14.6]} 21... Nb6 {[%clk 0:01:13.7]} 22. f5 {[%clk 0:01:09.4]} 22...
Nc4 {[%clk 0:01:06.5]} 23. Qg5 {[%clk 0:01:07.9]} 23... f6 {[%clk 0:00:08.6]}
24. exf6 {[%clk 0:01:02.9]} 24... e5 {[%clk 0:00:08.7]} 25. Nxd5 {[%clk
0:00:59.1]} 25... Bxd5 {[%clk 0:00:04.7]} 26. Bxd5+ {[%clk 0:01:00]} 26... Kh8
{[%clk 0:00:05.2]} 27. fxg7+ {[%clk 0:00:52.2]} 27... Qxg7 {[%clk 0:00:06.1]}
28. Qxg7+ {[%clk 0:00:46.8]} 28... Kxg7 {[%clk 0:00:07]} 29. Bxc4 {[%clk
0:00:46.7]} 29... Rxc4 {[%clk 0:00:07.5]} 30. Bxe5+ {[%clk 0:00:47.1]} 30... Kg8
{[%clk 0:00:06]} 31. Rd7 {[%clk 0:00:32.9]} 31... Nf7 {[%clk 0:00:05.5]} 32. Bd4
{[%clk 0:00:28.6]} 32... a5 {[%clk 0:00:04.3]} 33. c3 {[%clk 0:00:26.9]} 33...
a4 {[%clk 0:00:02.1]} 34. Nd2 {[%clk 0:00:26.7]} 1-0

[Event "*** SCC Grand Prix: Titled Tuesday Blitz"]
[Site "Chess.com"]
[Date "2020.07.21"]
[Round "5"]
[White "The_Machine04"]
[Black "FMalexhdez"]
[Result "1-0"]
[WhiteElo "2284"]
[BlackElo "2128"]
[TimeControl "180+1"]
[EndTime "10:55:15 PDT"]
[Termination "The_Machine04 won by resignation"]

1. d4 {[%clk 0:02:59.9]} 1... Nf6 {[%clk 0:02:59.4]} 2. Bg5 {[%clk 0:02:58.6]}
2... Ne4 {[%clk 0:02:57.8]} 3. Bf4 {[%clk 0:02:58.2]} 3... d5 {[%clk 0:02:56.5]}
4. e3 {[%clk 0:02:57.2]} 4... c5 {[%clk 0:02:52.9]} 5. Bd3 {[%clk 0:02:56.7]}
5... cxd4 {[%clk 0:02:50.3]} 6. exd4 {[%clk 0:02:55.9]} 6... Qb6 {[%clk
0:02:43.9]} 7. Bxe4 {[%clk 0:02:55]} 7... dxe4 {[%clk 0:02:43.5]} 8. Nc3 {[%clk
0:02:54.6]} 8... e6 {[%clk 0:02:25]} 9. Nge2 {[%clk 0:02:53.8]} 9... Nc6 {[%clk
0:02:24.3]} 10. O-O {[%clk 0:02:45.2]} 10... a6 {[%clk 0:01:33.6]} 11. Nxe4
{[%clk 0:02:42.9]} 11... Qxb2 {[%clk 0:01:32.8]} 12. Nd6+ {[%clk 0:02:39.9]}
12... Bxd6 {[%clk 0:01:28.6]} 13. Bxd6 {[%clk 0:02:40.8]} 13... Kd7 {[%clk
0:01:17.5]} 14. Bc5 {[%clk 0:02:28.8]} 14... Ne7 {[%clk 0:00:48.7]} 15. c4
{[%clk 0:02:22]} 15... Rd8 {[%clk 0:00:45.7]} 16. Rb1 {[%clk 0:02:08]} 16...
Qxa2 {[%clk 0:00:43.5]} 17. Nc3 {[%clk 0:01:59.7]} 17... Qxc4 {[%clk 0:00:42.5]}
18. Qf3 {[%clk 0:01:53.9]} 18... Ke8 {[%clk 0:00:40]} 19. Ne4 {[%clk 0:01:51.2]}
19... Nf5 {[%clk 0:00:32.8]} 20. g4 {[%clk 0:01:15]} 20... Nxd4 {[%clk
0:00:32.5]} 21. Bxd4 {[%clk 0:01:11.1]} 21... Rxd4 {[%clk 0:00:32.3]} 22. Rfe1
{[%clk 0:00:41.8]} 22... Kf8 {[%clk 0:00:22.6]} 23. Rbc1 {[%clk 0:00:38.3]}
23... Qa4 {[%clk 0:00:21.2]} 24. Rc7 {[%clk 0:00:35.4]} 24... Bd7 {[%clk
0:00:19.3]} 25. h3 {[%clk 0:00:15.7]} 25... Rc8 {[%clk 0:00:18]} 26. Nc5 {[%clk
0:00:13.1]} 26... Qa5 {[%clk 0:00:15.2]} 27. Nxd7+ {[%clk 0:00:11.2]} 27... Rxd7
{[%clk 0:00:14]} 28. Rxc8+ {[%clk 0:00:10.7]} 28... Ke7 {[%clk 0:00:12]} 29. Qc3
{[%clk 0:00:10.1]} 29... Qd5 {[%clk 0:00:09.8]} 30. Qc5+ {[%clk 0:00:09.7]}
30... Kf6 {[%clk 0:00:07.6]} 31. Qxd5 {[%clk 0:00:09.6]} 31... Rxd5 {[%clk
0:00:07.8]} 32. Rc7 {[%clk 0:00:08.8]} 32... b5 {[%clk 0:00:07.6]} 33. Ra7
{[%clk 0:00:09.1]} 33... Rd6 {[%clk 0:00:06.8]} 34. Ra1 {[%clk 0:00:09.3]} 1-0

[Event "*** SCC Grand Prix: Titled Tuesday Blitz"]
[Site "Chess.com"]
[Date "2020.07.21"]
[Round "5"]
[White "vovachesss"]
[Black "HElissalt"]
[Result "0-1"]
[WhiteElo "2575"]
[BlackElo "2275"]
[TimeControl "180+1"]
[EndTime "10:55:17 PDT"]
[Termination "HElissalt won on time"]

1. e4 {[%clk 0:02:54]} 1... d6 {[%clk 0:02:57.6]} 2. Nc3 {[%clk 0:02:53.6]} 2...
Nf6 {[%clk 0:02:56.4]} 3. Be2 {[%clk 0:02:51.5]} 3... c5 {[%clk 0:02:54.4]} 4.
g4 {[%clk 0:02:51.1]} 4... Nc6 {[%clk 0:02:51.7]} 5. g5 {[%clk 0:02:50.9]} 5...
Nd7 {[%clk 0:02:51.2]} 6. d3 {[%clk 0:02:51.3]} 6... Nd4 {[%clk 0:02:49.9]} 7.
Be3 {[%clk 0:02:45.1]} 7... e5 {[%clk 0:02:25.6]} 8. h4 {[%clk 0:02:41.8]} 8...
Nb6 {[%clk 0:02:24.4]} 9. f4 {[%clk 0:02:39.1]} 9... exf4 {[%clk 0:02:00.4]} 10.
Bxf4 {[%clk 0:02:32.1]} 10... d5 {[%clk 0:01:54.6]} 11. Nf3 {[%clk 0:02:20]}
11... Bd6 {[%clk 0:01:51.9]} 12. e5 {[%clk 0:02:03.5]} 12... Be7 {[%clk
0:01:43.6]} 13. Qd2 {[%clk 0:01:59.8]} 13... Nxe2 {[%clk 0:01:37]} 14. Qxe2
{[%clk 0:01:50.6]} 14... Bg4 {[%clk 0:01:29.8]} 15. O-O-O {[%clk 0:01:49.4]}
15... O-O {[%clk 0:01:27.9]} 16. h5 {[%clk 0:01:46.4]} 16... Qd7 {[%clk
0:01:20.4]} 17. Rdf1 {[%clk 0:01:38.7]} 17... Qf5 {[%clk 0:01:18]} 18. Bd2
{[%clk 0:01:38.8]} 18... d4 {[%clk 0:01:11]} 19. Ne4 {[%clk 0:01:37.5]} 19...
Nd5 {[%clk 0:01:11.3]} 20. Qg2 {[%clk 0:01:24.8]} 20... Bxf3 {[%clk 0:01:08.9]}
21. Rxf3 {[%clk 0:01:23.4]} 21... Qxe5 {[%clk 0:01:09.5]} 22. Rhf1 {[%clk
0:01:16.6]} 22... Ne3 {[%clk 0:00:52]} 23. Bxe3 {[%clk 0:01:03.3]} 23... dxe3
{[%clk 0:00:51.1]} 24. Rxe3 {[%clk 0:00:46.2]} 24... Qd4 {[%clk 0:00:50.9]} 25.
Ref3 {[%clk 0:00:41]} 25... c4 {[%clk 0:00:39.9]} 26. Rf4 {[%clk 0:00:34.7]}
26... Qe3+ {[%clk 0:00:36.4]} 27. Kb1 {[%clk 0:00:32]} 27... cxd3 {[%clk
0:00:35.7]} 28. cxd3 {[%clk 0:00:32.9]} 28... Qxd3+ {[%clk 0:00:35.3]} 29. Ka1
{[%clk 0:00:33.6]} 29... Rac8 {[%clk 0:00:33.7]} 30. a3 {[%clk 0:00:13.1]} 30...
Rc2 {[%clk 0:00:28.1]} 31. R1f2 {[%clk 0:00:04.7]} 31... Rc1+ {[%clk 0:00:21.7]}
32. Ka2 {[%clk 0:00:04.7]} 32... Qc4+ {[%clk 0:00:19.4]} 33. b3 {[%clk
0:00:04.8]} 33... Qd3 {[%clk 0:00:18.5]} 34. Rb2 {[%clk 0:00:04]} 34... Qd1
{[%clk 0:00:17.4]} 0-1

[Event "*** SCC Grand Prix: Titled Tuesday Blitz"]
[Site "Chess.com"]
[Date "2020.07.21"]
[Round "5"]
[White "talman67"]
[Black "Kirill_Klukin"]
[Result "0-1"]
[WhiteElo "2496"]
[BlackElo "2719"]
[TimeControl "180+1"]
[EndTime "10:55:18 PDT"]
[Termination "Kirill_Klukin won by checkmate"]

1. e4 {[%clk 0:03:00.9]} 1... c5 {[%clk 0:02:41.4]} 2. Nf3 {[%clk 0:03:01]} 2...
Nc6 {[%clk 0:02:33.9]} 3. Bb5 {[%clk 0:02:54.2]} 3... g6 {[%clk 0:02:33.7]} 4.
Bxc6 {[%clk 0:02:51.1]} 4... bxc6 {[%clk 0:02:33.5]} 5. O-O {[%clk 0:02:48.7]}
5... Bg7 {[%clk 0:02:29.4]} 6. c3 {[%clk 0:02:49.1]} 6... Nh6 {[%clk 0:02:28.9]}
7. h3 {[%clk 0:02:47.3]} 7... O-O {[%clk 0:02:29.2]} 8. d4 {[%clk 0:02:46.7]}
8... cxd4 {[%clk 0:02:30.1]} 9. cxd4 {[%clk 0:02:47.6]} 9... f6 {[%clk
0:02:30.5]} 10. Nc3 {[%clk 0:02:46.9]} 10... d6 {[%clk 0:02:30.5]} 11. Re1
{[%clk 0:02:40.9]} 11... Nf7 {[%clk 0:02:30.7]} 12. Qc2 {[%clk 0:02:31.6]} 12...
Qa5 {[%clk 0:02:30]} 13. Bd2 {[%clk 0:02:30]} 13... Qh5 {[%clk 0:02:29.9]} 14.
Ne2 {[%clk 0:02:24.1]} 14... Bd7 {[%clk 0:02:29.7]} 15. d5 {[%clk 0:02:21.1]}
15... g5 {[%clk 0:02:24.8]} 16. dxc6 {[%clk 0:02:19.8]} 16... Rac8 {[%clk
0:02:24.4]} 17. Ned4 {[%clk 0:02:08.9]} 17... g4 {[%clk 0:02:12.3]} 18. hxg4
{[%clk 0:01:50.4]} 18... Bxg4 {[%clk 0:02:13.2]} 19. Qd3 {[%clk 0:01:50.6]}
19... Ne5 {[%clk 0:02:09.7]} 20. Nxe5 {[%clk 0:01:48.2]} 20... fxe5 {[%clk
0:02:09.9]} 21. Nb3 {[%clk 0:01:43.5]} 21... Kh8 {[%clk 0:02:00.6]} 22. Rac1
{[%clk 0:01:38.3]} 22... Bf6 {[%clk 0:02:00.5]} 23. Re3 {[%clk 0:01:35.5]} 23...
Rg8 {[%clk 0:02:00]} 24. Rg3 {[%clk 0:01:35.3]} 24... Bh4 {[%clk 0:02:00.1]} 25.
Re3 {[%clk 0:01:05.4]} 25... Bxf2+ {[%clk 0:01:32.2]} 26. Kxf2 {[%clk
0:00:51.8]} 26... Qh2 {[%clk 0:00:58.3]} 27. Rg3 {[%clk 0:00:08.2]} 27... Rcf8+
{[%clk 0:00:56.5]} 28. Bf4 {[%clk 0:00:08.5]} 28... Rxf4+ {[%clk 0:00:50.1]} 29.
Ke1 {[%clk 0:00:08.5]} 29... Rc8 {[%clk 0:00:29.7]} 30. Kd2 {[%clk 0:00:06.5]}
30... Rf2+ {[%clk 0:00:27.1]} 31. Kc3 {[%clk 0:00:06]} 31... Be6 {[%clk
0:00:21.9]} 32. Kb4 {[%clk 0:00:05]} 32... Qh6 {[%clk 0:00:19.8]} 33. Rc3 {[%clk
0:00:03.2]} 33... Rb8+ {[%clk 0:00:19.2]} 34. Ka5 {[%clk 0:00:02.6]} 34... Rxb2
{[%clk 0:00:19.1]} 35. c7 {[%clk 0:00:02.6]} 35... Rxa2# {[%clk 0:00:19.6]} 0-1